Cogmind - Beta 16 @@@ ROGUE MODE // 2025.12.01 @ 21:00:10 Player: lvl5hm Result: Destroyed by B-99 Colossus with Multirail Performance ------------- Evolutions (9) 4500 Regions Visited (22) 4400 Robots Destroyed (332) 1660 Value Destroyed (17127) 17127 Prototype IDs (63) 1260 Alien Tech Used (2) 400 Bonus (14050) 14050 TOTAL SCORE: 43397 Bonus ------- Triggered High Security 500 High Alert Combat Kills 5478 Follower Combat Kills 2974 Network Hubs Disabled 200 Delivered SUBCON Basin 2000 Registered with UFD 300 Met Data Miner 300 Met Zhirov 300 Met R17 at Cetus 500 Met R17 at Research 2000 Scanned by Researcher 500 Friendly Fire -1002 Cogmind --------- Core Integrity 0/1600 Matter 300/300 Energy 100/100 System Corruption 4% Temperature Cool (0) Movement Core (50) Location -1/Access Parts ------- > --- POWER (2) -------- (None) > --- PROPULSION (6) --- (None) > --- UTILITY (11) ----- (None) > --- WEAPON (6) ------- (None) > --- INVENTORY (5) ---- Reinforced Antimatter Reactor Improved Transmission Jammer Potential Cannon Advanced Remote Datajack Peak State ------------ > --- POWER ------------ Heavy Antimatter Reactor Light Quantum Reactor > --- PROPULSION ------- Centrium Heavy Treads Centrium Heavy Treads Advanced Heavy Siege Treads > --- UTILITY ---------- Scrap Suit Advanced Cryofiber Web Advanced Heat Sink Huge Storage Unit Experimental Terrain Scanner Improved Terrain Scan Processor SHELL Armor Experimental Hardlight Generator > --- WEAPON ----------- Heavy Machine Gun KE Penetrator Overtuned Coil Gun Railgun Overtuned Railgun Overtuned Railgun > --- INVENTORY -------- Overtuned Huge Scrapsphere Advanced Heat Sink Advanced Heat Sink Advanced Coolant Injector Matter Compressor Spectral Analyzer Improved Transmission Jammer Centrium Medium Armor Plating Advanced Force Field Long-range Tractor Beam Transdimensional Reconstructor Compact HERF Cannon Nova Cannon Potential Cannon Heavy Machine Gun Overtuned Railgun Gamma Bomb Array Improved Remote Datajack CPS Tube Multitool Vibroblade [Rating: 200] Favorites ----------- Power Subdweller Power Source Engine Subdweller Power Source Power Core Neutrino Core Reactor Particle Reactor Propulsion Overtuned Huge Scrapsphere Treads Light Treads Leg Cargo Legs Wheel Overtuned Huge Scrapsphere Hover Unit Improved Gyrokinetic Inverter Utility Huge Storage Unit Device Advanced Heat Sink Storage Huge Storage Unit Processor Improved Terrain Scan Processor Hackware Makeshift Hacking Suite Protection Hardened Heavy Armor Plating Weapon Overtuned Coil Gun Energy Gun Plasma Rifle Energy Cannon Subdweller Beam Cannon Ballistic Gun Overtuned Coil Gun Ballistic Cannon Light Cannon Launcher Gamma Bomb Array Special Weapon Multitool Impact Weapon Hammer Slashing Weapon Katana Build | -11 -10 -10 -8 -8 -6 -6 -6 -5 -5 -5 -5 -5 -5 -4 -4 -4 -4 -3 -3 -3 -2 -1 ------- Run | Yrd Mat Sub Rec Scr Fac Low Dat Pro Fac Ext Cet Arc Hub Fac Upp Upp Zhi Pro Res Tes Res Acc Slots Evolved 18 | . . . . . 8 . . . 2 . . . . 2 . . . . 2 . 2 2 Power 1 | . . . . . . . . . . . . . . . . . . . . . 1 . Propulsion 4 | . . . . . . . . . . . . . . . . . . . 2 . . 2 Utility 9 | . . . . . 7 . . . 1 . . . . . . . . . . . 1 . Weapon 4 | . . . . . 1 . . . 1 . . . . 2 . . . . . . . . Parts Attached 157 | 8 5 14 . 7 19 . 2 . 17 15 7 1 6 12 1 . 2 . 5 14 7 15 Power 11 | 1 1 1 . 1 . . . . 1 1 . 1 . . . . 1 . . . 1 2 Engine 3 | 1 1 1 . . . . . . . . . . . . . . . . . . . . Core 3 | . . . . 1 . . . . 1 1 . . . . . . . . . . . . Reactor 5 | . . . . . . . . . . . . 1 . . . . 1 . . . 1 2 Propulsion 12 | 2 . 1 . 1 . . . . . . 1 . . . . . . . 1 . 1 5 Treads 6 | 2 . . . . . . . . . . 1 . . . . . . . 1 . 1 1 Leg 1 | . . 1 . . . . . . . . . . . . . . . . . . . . Wheel 1 | . . . . 1 . . . . . . . . . . . . . . . . . . Hover 4 | . . . . . . . . . . . . . . . . . . . . . . 4 Flight . | . . . . . . . . . . . . . . . . . . . . . . . Utility 73 | 2 2 4 . 1 12 . . . 6 9 5 . 5 8 1 . 1 . 2 10 1 4 Device 51 | 1 1 3 . 1 7 . . . 4 6 3 . 4 8 1 . 1 . 1 7 1 2 Storage 3 | 1 1 . . . 1 . . . . . . . . . . . . . . . . . Processor 5 | . . . . . 1 . . . . . . . . . . . . . 1 1 . 2 Hackware 3 | . . . . . 2 . . . 1 . . . . . . . . . . . . . Protection 11 | . . 1 . . 1 . . . 1 3 2 . 1 . . . . . . 2 . . Artifact . | . . . . . . . . . . . . . . . . . . . . . . . Weapon 61 | 3 2 8 . 4 7 . 2 . 10 5 1 . 1 4 . . . . 2 4 4 4 Energy Gun 2 | . . . . . 1 . 1 . . . . . . . . . . . . . . . Energy Cannon 7 | . . 1 . . 2 . 1 . . . . . 1 . . . . . 1 . . 1 Ballistic Gun 34 | 3 . 6 . . 4 . . . 7 3 1 . . 2 . . . . . 3 3 2 Ballistic Cannon 2 | . 2 . . . . . . . . . . . . . . . . . . . . . Launcher 2 | . . . . . . . . . . 1 . . . . . . . . . . . 1 Special Weapon 11 | . . . . 3 . . . . 3 1 . . . 1 . . . . 1 1 1 . Impact Weapon 1 | . . 1 . . . . . . . . . . . . . . . . . . . . Slashing Weapon 2 | . . . . 1 . . . . . . . . . 1 . . . . . . . . Piercing Weapon . | . . . . . . . . . . . . . . . . . . . . . . . Special Melee Weapon . | . . . . . . . . . . . . . . . . . . . . . . . Unidentified Prototypes 15 | . . . . . 3 . . . . . 2 . . 2 . . 2 . . 4 . 2 Corrupted Parts 1 | . . . . . 1 . . . . . . . . . . . . . . . . . System Corruption 4 | . . . . . 4 . . . . . . . . . . . . . . . . . Parts Lost 28 | . 1 2 . . 2 . . . . . . . . . . . . . 1 2 5 15 Power 3 | . . 1 . . . . . . . . . . . . . . . . . . . 2 Propulsion 4 | . . 1 . . . . . . . . . . . . . . . . . . . 3 Utility 8 | . 1 . . . 1 . . . . . . . . . . . . . . 1 . 5 Weapon 13 | . . . . . 1 . . . . . . . . . . . . . 1 1 5 5 Highest Loss Streak 11 | . 1 1 . . 1 . . . . . . . . . . . . . 1 1 3 11 To Critical Strikes 1 | . . . . . . . . . . . . . . . . . . . . . 1 . Average Backups 16 | 1 14 9 11 13 20 20 21 21 21 21 21 21 20 21 22 22 22 22 22 22 20 16 Power . | . . . 1 1 1 1 1 1 1 1 1 1 . . . . . . . . . . Propulsion 1 | . . 1 . . 1 1 1 1 1 1 1 3 3 2 3 3 3 3 2 1 2 . Utility 6 | . 4 2 5 7 8 7 7 8 8 8 8 7 7 10 11 11 10 10 10 8 7 7 Weapon 5 | . 8 4 3 2 6 8 9 8 7 9 7 7 7 5 6 6 5 6 6 8 6 5 Tool/Special . | . . . . . . . . . . . . . . . . . . . . . . . Unused Backups 48 | . 2 9 . 12 4 . . . 1 1 3 1 1 1 . . . . . 7 . 6 Power 4 | . . . . 2 . . . . . . . 1 1 . . . . . . . . . Propulsion 4 | . . 2 . . . . . . . . 1 . . . . . . . . 1 . . Utility 18 | . . 1 . 7 1 . . . 1 1 2 . . . . . . . . 3 . 2 Weapon 17 | . 2 5 . 2 3 . . . . . . . . . . . . . . 3 . 2 Tool/Special 5 | . . 1 . 1 . . . . . . . . . 1 . . . . . . . 2 Average Slot Usage (%) 72 | . 99 80 66 46 77 80 65 80 79 84 82 82 82 83 83 84 64 84 79 81 76 60 Engine 4 | . 14 12 11 2 . . . . . . . . . . . . . . . . . . Core 1 | . . . . 2 6 6 6 6 5 5 5 1 . . . . . . . . . . Reactor 1 | . . . . . . . . . . . . 3 5 5 5 5 5 5 4 4 7 5 Treads 5 | . 27 18 . . . . . . . . 1 4 . . . . . . 4 4 4 8 Leg 3 | . . 3 11 11 . . . . . . . . . . . . . . . . . . Wheel 2 | . . . . . 6 6 6 6 5 5 3 . 5 5 5 5 5 5 4 4 4 1 Device 16 | . 13 5 11 6 25 33 33 33 28 25 29 29 30 29 30 31 31 29 23 24 21 15 Storage 6 | . 14 6 11 8 6 6 6 6 5 5 5 5 5 5 5 5 5 5 4 4 4 3 Protection 4 | . . 6 . . 5 6 6 6 6 11 10 11 9 5 5 5 5 6 4 3 4 3 Energy Cannon 2 | . . 2 11 4 4 6 1 6 3 . . . . 1 . . . . . 2 1 . Ballistic Gun 13 | . 9 14 8 . 5 6 1 6 12 22 23 23 22 28 31 31 10 31 26 25 23 17 Ballistic Cannon 2 | . 18 6 . . . . . . . . . . . . . . . . . . . . Impact Weapon 1 | . . 1 2 5 . . . . . . . . . . . . . . . . . . Slashing Weapon 1 | . . . . 5 . . . . . . . . . . . . 1 . . . . . Peak Build Rating 200 | 7 9 43 44 38 78 79 79 78 96 99 107 109 104 119 118 118 119 117 139 154 174 200 Average Rating 63 | 6 8 19 29 27 71 79 65 75 86 96 99 107 98 109 114 114 94 115 135 140 168 153 On Entrance 85 | . 7 9 43 28 33 76 79 78 75 96 95 107 99 99 118 118 116 117 117 139 154 170 Avg Prop Armor Cover (%) 6 | . . . . . . . . . . . . . . . . . . . 5 5 5 10 Naked Turns 22 | . . . . . . . . . . . . . . . . . . . . . . 22 Heaviest Build 202 | 15 92 95 96 97 136 137 141 141 152 143 151 154 159 167 157 157 157 163 163 177 202 199 Greatest Support 240 | 40 40 55 55 55 20 20 20 20 20 20 80 80 20 20 20 20 20 20 20 80 20 240 Greatest Overweight (x) 10 | . 2 2 1 4 6 6 7 7 7 7 7 7 7 8 7 7 7 8 8 8 10 9 Average Overweight (x) 3 | . 1 . 1 . 5 6 6 7 6 6 5 1 7 7 7 7 6 7 7 5 8 . Largest Inventory Capacity 25 | 8 25 25 25 25 25 25 25 25 25 25 25 25 25 25 25 25 25 25 25 25 25 25 Average Capacity 21 | 7 24 14 25 20 25 25 25 25 25 25 25 25 25 25 25 25 25 25 25 25 25 20 Most Carried 25 | 3 21 25 25 25 25 23 25 25 25 25 25 25 25 25 25 25 25 25 25 25 25 25 Average Carried 18 | 1 14 12 15 15 22 23 24 24 24 24 24 24 24 24 25 25 24 25 24 24 23 18 Final Capacity 25 | 8 25 25 25 25 25 25 25 25 25 25 25 25 25 25 25 25 25 25 25 25 25 5 Final Carried 25 | 3 20 24 17 23 24 23 23 25 25 25 25 25 25 25 25 25 25 25 25 25 24 5 Scrap Suit Usage (%) 16 | . . . . . 1 . . . 20 14 . . . 88 99 100 9 . 48 85 63 8 Parts Cannibalized 28 | . . . . . . . . . 1 . . . . 1 . . . . 11 4 3 8 Class Distribution -------------------- 45% | Mutant 34% | Scavenger-Scrapper 9% | Subdweller-Mutant 3% | Tank 3% | Commander-Scrapper Dominant Class ---------------- Mutant | -10/Materials Subdweller-Mutant | -10/Subcaves Mutant | -8/Recycling Mutant | -8/Scraptown Scavenger-Scrapper | -6/Factory Tank | -6/Lower Caves Mutant | -6/Data Miner Tank | -5/Proximity Caves Scavenger-Scrapper | -5/Factory Commander-Scrapper | -5/Extension Scavenger-Scrapper | -5/Cetus Scavenger-Scrapper | -5/Archives Scavenger-Scrapper | -5/Hub_04(d) Scavenger-Scrapper | -4/Factory Scavenger-Scrapper | -4/Upper Caves Scavenger-Scrapper | -4/Upper Caves Scavenger-Mutant | -4/Zhirov Scavenger-Scrapper | -3/Proximity Caves Scavenger-Scrapper | -3/Research Scavenger-Scrapper | -3/Testing Scavenger-Scrapper | -2/Research Scavenger-Executioner | -1/Access Resources | -11 -10 -10 -8 -8 -6 -6 -6 -5 -5 -5 -5 -5 -5 -4 -4 -4 -4 -3 -3 -3 -2 -1 ----------- Run | Yrd Mat Sub Rec Scr Fac Low Dat Pro Fac Ext Cet Arc Hub Fac Upp Upp Zhi Pro Res Tes Res Acc Matter Collected 16938 | 394 415 823 421 870 555 80 . 68 399 743 482 196 645 1445 473 438 . 436 841 1393 3756 2065 Remotely 5837 | . . . . . . . . . . . . . 344 426 . 10 . . 607 1012 1908 1530 Salvage Created 19903 | 205 497 461 215 320 1036 . . . 417 1199 595 395 1131 1889 852 739 . 415 849 1521 3870 3297 Parts 900 | 17 30 47 2 26 34 . . . 24 55 20 19 47 91 31 40 . 18 48 77 159 115 Haulers Intercepted 6 | . 2 . . . . . . . 1 . . . 1 1 . . . . 1 . . . Recyclers Shooed 8 | . . . . . . . . . . 1 . . . 5 . . . . . . 1 1 Parts Field Recycled . | . . . . . . . . . . . . . . . . . . . . . . . Retrieved Matter . | . . . . . . . . . . . . . . . . . . . . . . . Parts Self-Destructed 119 | . . 21 . . . . . . . . . . . . 38 40 . 20 . . . . Prevented 3 | . . . . . . . . . . . . . . . . . . 3 . . . . Parts Restored . | . . . . . . . . . . . . . . . . . . . . . . . Kills | -11 -10 -10 -8 -8 -6 -6 -6 -5 -5 -5 -5 -5 -5 -4 -4 -4 -4 -3 -3 -3 -2 -1 ------- Run | Yrd Mat Sub Rec Scr Fac Low Dat Pro Fac Ext Cet Arc Hub Fac Upp Upp Zhi Pro Res Tes Res Acc Combat Hostiles Destroyed 246 | . 8 19 . . 16 . . . 2 15 8 3 12 16 14 13 . 9 9 16 47 39 Guns 229 | . 4 14 . . 12 . . . 2 14 8 3 11 15 14 13 . 9 9 16 46 39 Cannons 14 | . 4 5 . . 3 . . . . . . . . 1 . . . . . . 1 . AOE 1 | . . . . . . . . . . 1 . . . . . . . . . . . . Classes Destroyed 23 | 2 4 3 . 1 3 . . . 1 . . . 1 1 2 . . 2 . 2 1 . Worker 10 | . . . . . . . . . . . . . 1 1 . . . . 3 1 2 2 Builder 14 | . 1 . . . 1 . . . . 1 . . 3 1 . . . . 1 . 6 . Tunneler 8 | 6 . . . . . . . . . 1 . . . 1 . . . . . . . . Hauler 6 | . 2 . . . . . . . 1 . . . 1 1 . . . . 1 . . . Recycler 14 | 1 1 . 3 . 1 . . . . 2 . . 1 2 . . . . . . 2 1 Minesweeper 1 | . . . . . . . . . . . . . . . . . . 1 . . . . Operator 4 | . . . . . . . . . 1 . . 2 . . . . . . 1 . . . Drone 1 | . . . . . . . . . . . . . . . . . . 1 . . . . Turret 1 | . . 1 . . . . . . . . . . . . . . . . . . . . Watcher 12 | . 2 . . . 2 . . . . 1 2 . 3 1 . . . . . . . 1 Swarmer 30 | . . 4 . . 3 . . . . 4 . . . . 4 5 . 5 . . 5 . Saboteur 2 | . . . . . . . . . . . . . . . . . . . . . 1 1 Grunt 85 | . 8 1 . . 7 . . . 1 7 . . 4 4 3 4 . 2 3 2 15 24 Brawler 7 | . . . . . . . . . . . . . . . 2 . . . . . 2 3 Duelist 8 | . . . . . . . . . . . . . . . 2 1 . . . . 4 1 Researcher 2 | . . . . . . . . . . . . . . . . . . . . 2 . . Sentry 24 | . . . . . 2 . . . 1 4 . 3 3 1 1 1 . . 1 3 3 1 Specialist 2 | . . . . . . . . . . . . . . 2 . . . . . . . . Hunter 29 | . . . . . 2 . . . . . . . 3 3 . 2 . . 3 5 10 1 Programmer 35 | . . . . . 2 . . . . . . . 2 6 2 . . 1 2 5 7 8 Q-Series 1 | . . . . . . . . . . . . . . . . . . . . 1 . . Cetus Guard 8 | . . . . . . . . . . . 8 . . . . . . . . . . . Subdweller 14 | . . 14 . . . . . . . . . . . . . . . . . . . . Scrapoid 13 | . . . . 4 . . . . 2 . . . . 5 . . . . . 2 . . Guerrilla 1 | . . . . . . . . . . . . 1 . . . . . . . . . . Best Kill Streak 26 | 2 2 4 2 . 8 . . . 2 4 5 3 7 4 9 7 . 7 6 4 26 14 Combat Bots Only 13 | . 2 4 . . 6 . . . 1 3 4 2 4 3 9 7 . 6 3 4 12 13 Max Kills in Single Turn 5 | 1 1 2 1 1 1 . . . 1 3 1 2 5 3 3 3 . 2 3 1 3 3 Gunslinging 2 | . . . . . . . . . . 1 . . . 1 2 2 . 1 . . 1 1 Exploded 1 | . . . . . . . . . . 1 . . . . . . . . . . . . Melee . | . . . . . . . . . . . . . . . . . . . . . . . Uniques/NPCs Destroyed . | . . . . . . . . . . . . . . . . . . . . . . . Combat | -11 -10 -10 -8 -8 -6 -6 -6 -5 -5 -5 -5 -5 -5 -4 -4 -4 -4 -3 -3 -3 -2 -1 -------- Run | Yrd Mat Sub Rec Scr Fac Low Dat Pro Fac Ext Cet Arc Hub Fac Upp Upp Zhi Pro Res Tes Res Acc Hostile Shots Fired 1338 | . 47 134 . . 105 . . 37 7 29 26 4 45 38 10 12 . 11 22 76 176 559 Missed 404 | . 12 58 . . 38 . . 13 3 9 8 1 21 12 4 5 . 4 12 19 28 157 Hits 934 | . 35 76 . . 67 . . 24 4 20 18 3 24 26 6 7 . 7 10 57 148 402 Melee 15 | . . . . . . . . . . . . . . . . 1 . . . . . 14 Projectile 919 | . 35 76 . . 67 . . 24 4 20 18 3 24 26 6 6 . 7 10 57 148 388 AOE 8 | . . 7 . . . . . . . . . . . . . . . . . . . 1 Critical Strikes 45 | . 3 1 . . 1 . . . . 2 3 . . 1 . . . . . 2 5 27 Part Disruptions 2 | . . . . . . . . . . . . . . . . . . . . 1 . 1 Damage Taken 17307 | . 460 1526 . . 819 . . 278 174 564 481 104 499 544 124 175 . 176 308 971 2901 7203 Core 2131 | . 55 177 . . 138 . . . 12 24 . . 43 . . 18 . . . 10 114 1540 Absorbed by Shields 3175 | . . . . . 118 . . 48 48 . . . . . . . . . . 248 405 2308 Reduced by Siege Mode 247 | . . . . . . . . . . . . . . . . . . . . . 46 201 Regen/Repaired (Parts) 4096 | . 184 . . . 549 . . . 223 . . . . 980 . . . . 105 40 1266 749 Core Remaining (%) 81 | 100 . . . 7 . . . 83 . . . . 92 . . . . 98 . 99 92 . Volleys Fired 707 | 21 41 88 8 4 51 . . 11 15 32 24 11 43 49 13 18 . 12 33 58 100 75 Largest 6 | 2 2 2 2 1 3 . . 3 4 4 4 4 4 6 6 6 . 6 6 6 6 6 Hottest 281 | 40 60 100 100 . 245 . . 190 222 131 128 128 128 250 192 192 . 192 273 273 281 248 Shots Fired 2669 | 42 82 166 8 4 125 1 . 16 36 125 96 44 127 214 74 93 1 73 142 268 533 399 Gun 2446 | 42 48 124 2 . 99 1 . 4 27 124 96 44 117 196 74 93 1 73 127 248 516 390 Cannon 201 | . 34 42 6 . 26 . . 12 4 . . . 10 15 . . . . 13 18 14 7 Launcher 3 | . . . . . . . . . . 1 . . . . . . . . . . . 2 Special 19 | . . . . 4 . . . . 5 . . . . 3 . . . . 2 2 3 . Kinetic 2470 | 42 82 159 2 . 58 . . 2 26 124 96 44 117 196 74 93 1 73 127 248 516 390 Thermal 165 | . . 7 6 . 54 1 . 14 5 . . . 10 16 . . . . 13 18 14 7 Explosive 1 | . . . . . . . . . . 1 . . . . . . . . . . . . Electromagnetic 15 | . . . . . 13 . . . . . . . . . . . . . . . . 2 Robot Hit Streak 38 | 6 9 15 3 4 14 2 . 1 14 10 17 19 17 10 8 7 . 5 26 13 38 20 Robot Miss Streak 10 | 5 4 3 3 . 3 . . 4 2 4 3 6 3 10 8 4 1 2 3 5 5 4 Penetration Max 2 | . . . . . 2 . . . 1 2 2 1 1 2 2 1 . 1 2 1 2 2 Secondary Targets 63 | . 2 1 . . 1 . . . . 6 2 . 2 1 3 6 . 1 3 2 16 17 Max Gunslinging Chain 2 | . 1 1 . . 1 . . . . 1 1 . 1 1 2 2 . 1 1 1 2 2 Shots Hit Robots 1579 | 23 49 100 6 11 83 1 . 1 27 79 74 29 67 107 33 47 . 29 79 133 323 278 Core Hits 723 | 8 19 29 1 4 36 . . . 10 44 31 14 37 60 22 27 . 16 33 52 156 124 Critical Kills 48 | . . 1 . . 1 . . . . 1 2 3 4 4 4 3 . 1 2 6 8 8 Critical Parts Destroyed 87 | . . . . . 1 . . . . 7 4 2 5 6 3 1 . 2 6 9 26 15 Critical Strikes 155 | . . 2 . . 8 . . . . 10 8 7 9 10 8 5 . 3 8 17 36 24 Burn 5 | . . . . . 5 . . . . . . . . . . . . . . . . . Destroy 149 | . . 2 . . 2 . . . . 10 8 7 9 10 8 5 . 3 8 17 36 24 Corrupt 1 | . . . . . 1 . . . . . . . . . . . . . . . . . Melee Attacks 46 | . . 21 3 7 1 . . . 3 . . . . 3 . . . . 3 5 . . Impact 24 | . . 21 3 . . . . . . . . . . . . . . . . . . . Slashing 22 | . . . . 7 1 . . . 3 . . . . 3 . . . . 3 5 . . Piercing . | . . . . . . . . . . . . . . . . . . . . . . . Sneak Attacks 23 | . . . 3 7 . . . . 3 . . . . 3 . . . . 2 5 . . Combat Hostiles . | . . . . . . . . . . . . . . . . . . . . . . . Follow-up Attacks . | . . . . . . . . . . . . . . . . . . . . . . . Damage Inflicted 51792 | 310 729 1971 240 466 2373 22 . 30 750 3163 2573 1103 2731 4239 1388 1548 . 1009 2770 3885 10833 9659 Guns 46257 | 310 377 1471 9 . 1773 22 . . 486 2860 2573 1103 2146 3846 1388 1548 . 1009 2303 3336 10523 9174 Cannons 2179 | . 352 500 55 . 600 . . 30 64 . . . . 43 . . . . 174 51 310 . Explosions 1478 | . . . . . . . . . . 303 . . 585 111 . . . . . . . 479 Melee 1819 | . . . 176 466 . . . . 200 . . . . 186 . . . . 293 498 . . Ramming 59 | . . . . . . . . . . . . . . 53 . . . . . . . 6 Kinetic 46299 | 310 729 1861 9 . 1095 . . . 486 2860 2573 1103 2146 3846 1388 1548 . 1009 2303 3336 10523 9174 Thermal 1774 | . . 110 55 . 856 22 . 30 64 . . . 59 43 . . . . 174 51 310 . Explosive 303 | . . . . . . . . . . 303 . . . . . . . . . . . . Electromagnetic 1538 | . . . . . 422 . . . . . . . 526 111 . . . . . . . 479 Impact 176 | . . . 176 . . . . . . . . . . . . . . . . . . . Slashing 1643 | . . . . 466 . . . . 200 . . . . 186 . . . . 293 498 . . Piercing . | . . . . . . . . . . . . . . . . . . . . . . . Highest Corruption 8 | . . . . . 8 8 8 8 . . . . . 2 2 2 2 2 2 8 6 4 Average Corruption 3 | . . . . . 3 8 8 8 . . . . . 1 2 2 2 2 1 3 3 1 Corruption Purged . | . . . . . . . . . . . . . . . . . . . . . . . Corruption Blocked . | . . . . . . . . . . . . . . . . . . . . . . . Effects 125 | . . . . . 15 11 3 14 . . . . . . 10 6 3 10 4 22 16 11 Message Errors 27 | . . . . . 2 3 1 4 . . . . . . 2 . 2 2 1 3 5 2 Matter Fused 26 | . . . . . 5 3 . 4 . . . . . . 6 2 . . 1 2 2 1 Heat Flow Errors 11 | . . . . . . 1 . 1 . . . . . . 1 1 . 2 . 4 1 . Energy Discharges 13 | . . . . . 2 1 2 . . . . . . . . 1 . 3 1 1 2 . Parts Rejected 1 | . . . . . . . . . . . . . . . . . . . . 1 . . Parts Fused 1 | . . . . . . . . . . . . . . . . 1 . . . . . . Data Loss (minor) 19 | . . . . . 4 1 . 3 . . . . . . . 1 . 1 . 5 1 3 Data Loss (major) 5 | . . . . . . 1 . 1 . . . . . . . . . 1 . 1 . 1 Misfires 9 | . . . . . 1 1 . 1 . . . . . . 1 . 1 1 . 2 . 1 Alerts 2 | . . . . . . . . . . . . . . . . . . . 1 1 . . Weapon Failures 11 | . . . . . 1 . . . . . . . . . . . . . . 2 5 3 Overload Shots . | . . . . . . . . . . . . . . . . . . . . . . . Overflow Damage 184 | . . . 94 . 21 . . . . 9 . . . 23 . . . . 37 . . . Projectiles 58 | . . . . . 21 . . . . . . . . . . . . . 37 . . . Explosions 9 | . . . . . . . . . . 9 . . . . . . . . . . . . Melee 117 | . . . 94 . . . . . . . . . . 23 . . . . . . . . Knockbacks 15 | . 4 9 1 . . . . . . . . . . 1 . . . . . . . . Impact 2 | . . . 1 . . . . . . . . . . 1 . . . . . . . . Kinetic 13 | . 4 9 . . . . . . . . . . . . . . . . . . . . Secondary . | . . . . . . . . . . . . . . . . . . . . . . . Self-Inflicted Damage 251 | . . . . . . . . . 101 . . . 98 26 . . . . . . . 26 Shots 6 | . . . . . . . . . 2 . . . 1 . . . . . . . . 3 Rammed 2 | . . . . . . . . . . . . . . 1 . . . . . . . 1 Targets Rammed 2 | . . . . . . . . . . . . . . 1 . . . . . . . 1 Kicked . | . . . . . . . . . . . . . . . . . . . . . . . Crushed . | . . . . . . . . . . . . . . . . . . . . . . . Highest Temperature 509 | . 31 38 120 . 126 113 . 245 18 85 132 95 348 371 320 276 . 354 308 306 509 294 Average Temperature 89 | . 14 14 43 . 38 80 . 97 9 38 62 46 102 140 151 133 . 173 124 119 151 97 Received Heat Transfer 2687 | . 312 252 . . 154 . . . 8 179 . 9 78 9 . 18 . 12 33 13 538 1072 Effects 3 | . . . . . . . . . . . . . . . . . . . . 3 . . Interference 3 | . . . . . . . . . . . . . . . . . . . . 3 . . Siege Activations 18 | . . . . . . . . . . . . 2 . . . . . . . 3 9 4 Total Turns 172 | . . . . . . . . . . . . 10 . . . . . . . 12 101 49 Longest Duration 34 | . . . . . . . . . . . . 7 . . . . . . . 8 34 34 Martial Activations . | . . . . . . . . . . . . . . . . . . . . . . . Shielding Activations . | . . . . . . . . . . . . . . . . . . . . . . . Robots Disrupted 1 | . . . . . . . . . . . . . . . . . . . . . . 1 Combat Hostiles 1 | . . . . . . . . . . . . . . . . . . . . . . 1 Robots Corrupted 4 | . . . 2 . 1 . . . . . . . 1 . . . . . . . . . Combat Hostiles 2 | . . . . . 1 . . . . . . . 1 . . . . . . . . . Parts Fried 14 | . . . 4 . 5 . . . . . . . 5 . . . . . . . . . Impact Corruptions 4 | . . . 3 . . . . . . . . . . 1 . . . . . . . . Robots Melted . | . . . . . . . . . . . . . . . . . . . . . . . Combat Hostiles . | . . . . . . . . . . . . . . . . . . . . . . . Parts Melted 8 | . . 1 . . 3 . . . . . 1 1 . 1 . . . . . 1 . . Heat Transferred 3036 | . . 148 74 . 2122 50 . 37 74 . . . 50 37 . . . . 148 37 259 . Parts Sabotaged 2 | . . . . . . . . . . . . . . . . . . . . . . 2 Parts Stolen . | . . . . . . . . . . . . . . . . . . . . . . . Parts Stripped . | . . . . . . . . . . . . . . . . . . . . . . . Power Chain Reactions 1 | . . . . . . . . . . . . . 1 . . . . . . . . . Alert | -11 -10 -10 -8 -8 -6 -6 -6 -5 -5 -5 -5 -5 -5 -4 -4 -4 -4 -3 -3 -3 -2 -1 ------- Run | Yrd Mat Sub Rec Scr Fac Low Dat Pro Fac Ext Cet Arc Hub Fac Upp Upp Zhi Pro Res Tes Res Acc Maximum Alert Level 5 | . . . . . . . . . 1 4 2 1 2 2 . . . . 1 2 5 5 Low Security (%) 57 | 100 100 . 100 . 100 . . . 82 6 . 64 81 27 . . . . 97 16 . . Level 1 16 | . . . . . . . . . 17 5 . 35 16 65 . . . . 2 49 13 . Level 2 13 | . . . . . . . . . . 43 100 . 2 6 . . . . . 34 35 . Level 3 4 | . . . . . . . . . . 31 . . . . . . . . . . 27 5 Level 4 3 | . . . . . . . . . . 13 . . . . . . . . . . 13 30 Level 5 . | . . . . . . . . . . . . . . . . . . . . . 11 . High Security 3 | . . . . . . . . . . . . . . . . . . . . . . 63 Max Security . | . . . . . . . . . . . . . . . . . . . . . . . Peak Influence 2402 | 10 50 . 122 . 188 . . . 266 1253 653 345 649 642 . . . . 208 622 1783 2402 Initial 1064 | . . . 57 . . . . . . 122 535 215 . 317 . . . . 77 18 345 1064 Average 316 | 1 7 . 13 . 55 . . . 152 726 594 141 140 247 . . . . 64 343 829 1788 Influence Increases 12005 | 35 234 160 198 . 507 . . . 530 1975 258 190 904 899 418 369 . 193 453 1140 1834 1708 Destroy 0b10 Robot/C 6140 | . 160 120 . . 320 . . . 120 960 160 80 240 400 340 260 . 160 220 600 1060 940 Destroy 0b10 Robot/NC 410 | 35 30 . 15 . 20 . . . 10 40 10 10 45 45 . . . 10 35 15 50 40 Destroy Leader 956 | . 38 10 . . 84 . . . 32 84 . . 88 94 30 30 . 20 42 100 180 124 Allied During Kill 1373 | . . . . . . . . . 89 718 45 10 . 87 48 79 . 3 31 108 13 142 Successful Hack 179 | . 5 . 14 . 34 . . . 28 . 9 . 5 23 . . . . 22 39 . . Select Force Hacks 150 | . . . 150 . . . . . . . . . . . . . . . . . . . Disable Machine 765 | . . . 15 . 15 . . . 135 45 . 60 165 60 . . . . 15 90 60 105 Destroy Structure 1747 | . 1 . 4 . 19 . . . 116 128 34 30 286 190 . . . . 88 188 456 207 Lose Combat Pursuer 285 | . . 30 . . 15 . . . . . . . 75 . . . . . . . 15 150 Influence Decreases 9603 | 35 234 41 317 . 425 82 . . 280 1268 676 729 255 906 516 374 539 78 536 558 673 1081 Entered New Map 3212 | . . . 62 . . 31 . . . 128 422 324 . 332 238 104 539 . 38 14 269 711 Time Decay 4928 | 35 224 41 255 . 304 51 . . 260 530 214 405 255 514 278 230 . 78 316 464 334 140 Lost Part 240 | . 10 . . . 10 . . . . . . . . . . . . . . 20 50 150 Lost Ally 790 | . . . . . 10 . . . 20 460 40 . . 60 . 40 . . . 60 20 80 Purge Threat 433 | . . . . . 101 . . . . 150 . . . . . . . . 182 . . . Squads Dispatched 93 | . 2 . . . 7 . . . 4 6 . . 6 9 . . . . 9 13 17 20 Investigation 20 | . 1 . . . 4 . . . 2 3 . . 2 2 . . . . 5 . . 1 Extermination 13 | . . . . . 2 . . . 1 . . . 1 3 . . . . . 3 3 . Reinforcement 22 | . 1 . . . 1 . . . 1 1 . . 1 4 . . . . 4 3 5 1 Assault 26 | . . . . . . . . . . 2 . . . . . . . . . 1 6 17 Garrison 12 | . . . . . . . . . . . . . 2 . . . . . . 6 3 1 Intercept . | . . . . . . . . . . . . . . . . . . . . . . . Searches Triggered . | . . . . . . . . . . . . . . . . . . . . . . . Data Miner Redirects 2 | . . . . . . . . . . . . . . 1 . . . . . 1 . . Construction Impeded 8 | . . . . . 1 . . . . 1 . . 1 2 . . . . . . 3 . Haulers Reinforced 6 | . . . . . . . . . 1 . . . . . . . . . 2 . 2 1 Active Scanning Responses . | . . . . . . . . . . . . . . . . . . . . . . . Cargo Convoy Interrupts . | . . . . . . . . . . . . . . . . . . . . . . . Stealth | -11 -10 -10 -8 -8 -6 -6 -6 -5 -5 -5 -5 -5 -5 -4 -4 -4 -4 -3 -3 -3 -2 -1 --------- Run | Yrd Mat Sub Rec Scr Fac Low Dat Pro Fac Ext Cet Arc Hub Fac Upp Upp Zhi Pro Res Tes Res Acc Distress Signals 34 | . 1 . . . . . . . . 2 2 . 6 2 . . . . 5 9 3 4 Communications Jammed 12 | . . . . . . . . . . . . . . . . . . . . . 4 8 Distress Signals 9 | . . . . . . . . . . . . . . . . . . . . . 1 8 Times Spotted 404 | . 19 23 . . 20 . . 2 5 38 7 10 22 23 13 13 . 9 17 21 59 103 Peak Tracking Total 17 | . 3 5 . . 5 . . 2 2 7 5 1 5 3 9 3 . 2 5 3 8 17 Tactical Retreats 14 | . . 2 . . 1 . . . . . . . 4 . . . . . . . 1 6 Traps | -11 -10 -10 -8 -8 -6 -6 -6 -5 -5 -5 -5 -5 -5 -4 -4 -4 -4 -3 -3 -3 -2 -1 ------- Run | Yrd Mat Sub Rec Scr Fac Low Dat Pro Fac Ext Cet Arc Hub Fac Upp Upp Zhi Pro Res Tes Res Acc Traps Triggered 19 | . 1 1 . . 3 . . . . 1 . . 2 5 . . . . . 2 . 4 Indirectly 3 | . . . . . . . . . . . . . 1 2 . . . . . . . . Trap Hack Attempts . | . . . . . . . . . . . . . . . . . . . . . . . Triggered . | . . . . . . . . . . . . . . . . . . . . . . . Disarmed . | . . . . . . . . . . . . . . . . . . . . . . . Reprogrammed . | . . . . . . . . . . . . . . . . . . . . . . . Reused . | . . . . . . . . . . . . . . . . . . . . . . . Traps Extracted . | . . . . . . . . . . . . . . . . . . . . . . . Installed . | . . . . . . . . . . . . . . . . . . . . . . . Triggered . | . . . . . . . . . . . . . . . . . . . . . . . Most Traps Carried 2 | . . . . 2 1 1 1 1 1 1 1 1 1 1 . . . . . . . . Machines | -11 -10 -10 -8 -8 -6 -6 -6 -5 -5 -5 -5 -5 -5 -4 -4 -4 -4 -3 -3 -3 -2 -1 ---------- Run | Yrd Mat Sub Rec Scr Fac Low Dat Pro Fac Ext Cet Arc Hub Fac Upp Upp Zhi Pro Res Tes Res Acc Machines Disabled 59 | . . 1 1 . 1 . . . 9 5 . 4 11 4 1 . 1 . 1 9 4 7 Max in Single Turn 8 | . . 1 1 . 1 . . . 8 1 . 1 4 1 . . 1 . 1 2 1 1 Garrison Access 2 | . . . . . . . . . . . . . . 1 . . . . 1 . . . Network Hub 1 | . . . . . . . . . . . . . 1 . . . . . . . . . Machines Repaired . | . . . . . . . . . . . . . . . . . . . . . . . Machines Dismantled . | . . . . . . . . . . . . . . . . . . . . . . . Machines Sabotaged . | . . . . . . . . . . . . . . . . . . . . . . . Overloaded Fab Kills . | . . . . . . . . . . . . . . . . . . . . . . . Hacking | -11 -10 -10 -8 -8 -6 -6 -6 -5 -5 -5 -5 -5 -5 -4 -4 -4 -4 -3 -3 -3 -2 -1 --------- Run | Yrd Mat Sub Rec Scr Fac Low Dat Pro Fac Ext Cet Arc Hub Fac Upp Upp Zhi Pro Res Tes Res Acc Machines Accessed 80 | . 4 4 11 3 9 . 4 . 7 5 1 . 5 6 . 1 4 . 7 7 1 1 Terminals 31 | . 3 . 6 . 2 . . . 1 4 1 . 5 1 . . . . 4 3 1 . Fabricators 3 | . . . . . 2 . . . . . . . . 1 . . . . . . . . Repair Stations 11 | . 1 . . . 2 . . . 4 . . . . 1 . . . . 1 2 . . Recycling Units 14 | . . . 5 . 2 . . . 2 1 . . . 2 . . . . 1 . . 1 Scanalyzers 4 | . . . . . 1 . . . . . . . . . . . . . 1 2 . . Garrison Access 1 | . . . . . . . . . . . . . . 1 . . . . . . . . Total Hacks 229 | . 14 7 16 25 25 . 29 . 12 10 1 . 11 23 . 1 17 . 17 17 1 3 Successful 156 | . 9 7 12 25 12 . 29 . 7 3 1 . 1 16 . 1 17 . 6 8 1 1 Failed 73 | . 5 . 4 . 13 . . . 5 7 . . 10 7 . . . . 11 9 . 2 Catastrophic 11 | . . . . . 1 . . . . 2 . . 3 . . . . . . 4 . 1 Database Lockouts . | . . . . . . . . . . . . . . . . . . . . . . . Manual 80 | . 6 . 16 . 8 . . . 4 11 . . 11 5 . . . . 12 3 1 3 Terminals 61 | . 8 . 10 . 4 . . . 2 8 1 . 11 2 . . . . 10 4 1 . Fabricators 10 | . . . . . 9 . . . . . . . . 1 . . . . . . . . Repair Stations 38 | . 6 . . . 4 . . . 8 . . . . 16 . . . . 1 3 . . Recycling Units 24 | . . . 6 . 6 . . . 2 2 . . . 3 . . . . 2 . . 3 Scanalyzers 16 | . . . . . 2 . . . . . . . . . . . . . 4 10 . . Garrison Access 1 | . . . . . . . . . . . . . . 1 . . . . . . . . Terminal Hacks 89 | . 1 7 1 25 1 . 29 . . 1 1 . . 1 . 1 17 . 3 1 . . Record 37 | . . 4 . 16 . . 11 . . . . . . . . 1 5 . . . . . Part Schematic 12 | . . . . . . . 8 . . . . . . . . . 4 . . . . . Robot Schematic 7 | . . . . . . . 7 . . . . . . . . . . . . . . . Robot Analysis 13 | . 1 . . 8 . . . . . . . . . . . . 4 . . . . . Prototype ID Bank 7 | . . . . . . . 3 . . . . . . . . . 4 . . . . . Open Door 3 | . . 1 . . . . . . . . 1 . . . . . . . . 1 . . Branch Access Points 2 | . . . . . . . . . . . . . . 1 . . . . 1 . . . Terminal Index 1 | . . . 1 . . . . . . . . . . . . . . . . . . . Unreport Threat 4 | . . . . . 1 . . . . 1 . . . . . . . . 2 . . . Proto ID Catalog 2 | . . 1 . 1 . . . . . . . . . . . . . . . . . . Release Object 1 | . . 1 . . . . . . . . . . . . . . . . . . . . Fabricator Hacks 5 | . . . . . 5 . . . . . . . . . . . . . . . . . Network Status 1 | . . . . . 1 . . . . . . . . . . . . . . . . . Load Schematic 3 | . . . . . 3 . . . . . . . . . . . . . . . . . Build 1 | . . . . . 1 . . . . . . . . . . . . . . . . . Repair Station Hacks 25 | . 6 . . . 2 . . . 5 . . . . 12 . . . . . . . . Scan Component 13 | . 3 . . . 1 . . . 3 . . . . 6 . . . . . . . . Repair 12 | . 3 . . . 1 . . . 2 . . . . 6 . . . . . . . . Recycling Unit Hacks . | . . . . . . . . . . . . . . . . . . . . . . . Scanalyzer 9 | . . . . . 2 . . . . . . . . . . . . . 1 6 . . Insert Component 3 | . . . . . 1 . . . . . . . . . . . . . 1 1 . . Analyze 3 | . . . . . 1 . . . . . . . . . . . . . . 2 . . Retrieve Study 3 | . . . . . . . . . . . . . . . . . . . . 3 . . Garrison Access Hacks 1 | . . . . . . . . . . . . . . 1 . . . . . . . . Seal Access 1 | . . . . . . . . . . . . . . 1 . . . . . . . . Unauthorized Hacks 27 | . 2 . 11 . 2 . . . 2 2 . . 1 2 . . . . 2 1 1 1 Terminals 15 | . 2 . 6 . 2 . . . . 1 . . 1 . . . . . 1 1 1 . Botnet 11 | . 2 . 2 . 2 . . . . 1 . . 1 . . . . . 1 1 1 . Skim 4 | . . . 4 . . . . . . . . . . . . . . . . . . . Fabricators . | . . . . . . . . . . . . . . . . . . . . . . . Repair Stations . | . . . . . . . . . . . . . . . . . . . . . . . Recycling Units 12 | . . . 5 . . . . . 2 1 . . . 2 . . . . 1 . . 1 Tunnel 5 | . . . 5 . . . . . . . . . . . . . . . . . . . Scrapoids 7 | . . . . . . . . . 2 1 . . . 2 . . . . 1 . . 1 Scanalyzers . | . . . . . . . . . . . . . . . . . . . . . . . Garrison Access . | . . . . . . . . . . . . . . . . . . . . . . . Data Cores Recovered 2 | . . . . . . . . . . 1 . . . . . . . . 1 . . . Used 1 | . . . . . . . . . . 1 . . . . . . . . . . . . Hacking Detections 36 | . 2 . 4 . 9 . . . 4 4 . . 5 2 . . . . 2 3 . 1 Full Trace Events 7 | . . . . . 4 . . . . . . . 1 . . . . . 2 . . . Feedback Events 2 | . . . . . 2 . . . . . . . . . . . . . . . . . Corruption 1 | . . . . . 1 . . . . . . . . . . . . . . . . . Hackware Fried 1 | . . . . . 1 . . . . . . . . . . . . . . . . . Feedback Blocked . | . . . . . . . . . . . . . . . . . . . . . . . Robot Schematics Acquired 9 | . . . . . . . 7 . . . . . . . . . . . . 2 . . Robots Built . | . . . . . . . . . . . . . . . . . . . . . . . Authchips . | . . . . . . . . . . . . . . . . . . . . . . . Time . | . . . . . . . . . . . . . . . . . . . . . . . Total Robot Build Rating . | . . . . . . . . . . . . . . . . . . . . . . . Part Schematics Acquired 14 | . . . . . 1 . 8 . . . . . . . . . 4 . . 1 . . Parts Built 1 | . . . . . 1 . . . . . . . . . . . . . . . . . Authchips 1 | . . . . . 1 . . . . . . . . . . . . . . . . . Time 53 | . . . . . 53 . . . . . . . . . . . . . . . . . Total Part Build Rating 6 | . . . . . 6 . . . . . . . . . . . . . . . . . Part Studies Acquired 3 | . . . . . . . . . . . . . . . . . . . . 3 . . Parts Repaired 12 | . 3 . . . 1 . . . 2 . . . . 6 . . . . . . . . Time 609 | . 78 . . . 25 . . . 78 . . . . 428 . . . . . . . . Parts Recycled . | . . . . . . . . . . . . . . . . . . . . . . . Recycled Matter . | . . . . . . . . . . . . . . . . . . . . . . . Retrieved Matter . | . . . . . . . . . . . . . . . . . . . . . . . Retrieved Components . | . . . . . . . . . . . . . . . . . . . . . . . Parts Scanalyzed 2 | . . . . . 1 . . . . . . . . . . . . . 1 . . . Part Schematics Acquired 2 | . . . . . 1 . . . . . . . . . . . . . . 1 . . Parts Damaged 1 | . . . . . . . . . . . . . . . . . . . 1 . . . Bothacking | -11 -10 -10 -8 -8 -6 -6 -6 -5 -5 -5 -5 -5 -5 -4 -4 -4 -4 -3 -3 -3 -2 -1 ------------ Run | Yrd Mat Sub Rec Scr Fac Low Dat Pro Fac Ext Cet Arc Hub Fac Upp Upp Zhi Pro Res Tes Res Acc Used RIF Installer . | . . . . . . . . . . . . . . . . . . . . . . . Robots Hacked 1 | . . . . . . . . . . . . . . . . . . . . . 1 . Non-combat . | . . . . . . . . . . . . . . . . . . . . . . . Combat . | . . . . . . . . . . . . . . . . . . . . . . . Robot Hacks Applied . | . . . . . . . . . . . . . . . . . . . . . . . Manual 1 | . . . . . . . . . . . . . . . . . . . . . 1 . Relay Couplers Released 2 | . . . . . . . . . . . . . . . . . . . 2 . . . Machine Destruction 2 | . . . . . . . . . . . . . . . . . . . 2 . . . Fabnet Peak Effective % . | . . . . . . . . . . . . . . . . . . . . . . . Robots Rewired 13 | . . . . . . . . . . 11 . . . . 2 . . . . . . . Allies Hacked 3 | . . . . . . . . . . . . . . . . . . . . . . 3 Hacks Repelled . | . . . . . . . . . . . . . . . . . . . . . . . Allies | -11 -10 -10 -8 -8 -6 -6 -6 -5 -5 -5 -5 -5 -5 -4 -4 -4 -4 -3 -3 -3 -2 -1 -------- Run | Yrd Mat Sub Rec Scr Fac Low Dat Pro Fac Ext Cet Arc Hub Fac Upp Upp Zhi Pro Res Tes Res Acc Total Allies 63 | . . . . 5 . . . . 10 25 . . . 10 2 . . . 5 . 1 5 Largest Group 20 | . . . . 5 1 . . . 8 20 4 2 . 5 3 3 1 1 5 5 1 5 Highest-Rated Group 698 | . . . . 241 47 . . . 379 698 134 67 . 235 143 143 49 49 323 320 148 320 Highest-Rated Ally 148 | . . . . 50 47 . . . 50 50 39 39 . 47 49 49 49 49 67 64 148 64 Total Orders 21 | . . . . . . . . . 5 2 . 2 . 8 . . . . 2 2 . . STAY 9 | . . . . . . . . . 3 1 . . . 3 . . . . 1 1 . . ROAM 3 | . . . . . . . . . . . . 2 . 1 . . . . . . . . FOLLOW 7 | . . . . . . . . . 2 1 . . . 2 . . . . 1 1 . . EXPLORE 1 | . . . . . . . . . . . . . . 1 . . . . . . . . RETURN 1 | . . . . . . . . . . . . . . 1 . . . . . . . . Ally Attacks 582 | . . . . . 6 . . . 23 250 19 16 . 48 11 9 . 1 14 61 48 76 Total Damage 13407 | . . . . . 112 . . . 443 5254 280 286 . 1018 216 212 . 46 409 1742 1687 1702 Kills 91 | . . . . . . . . . 5 40 . 1 . 6 3 . . . 3 14 6 13 Allies Corrupted . | . . . . . . . . . . . . . . . . . . . . . . . Allies Melted 3 | . . . . . . 1 . . . 1 . . . . . . . . . . 1 . Intel | -11 -10 -10 -8 -8 -6 -6 -6 -5 -5 -5 -5 -5 -5 -4 -4 -4 -4 -3 -3 -3 -2 -1 ------- Run | Yrd Mat Sub Rec Scr Fac Low Dat Pro Fac Ext Cet Arc Hub Fac Upp Upp Zhi Pro Res Tes Res Acc Active Infowar (turns) 18659 | 249 1743 2285 1868 3454 992 356 122 462 412 . . 455 505 1160 617 498 217 386 803 1253 401 421 Optics 84 | . . . . . . . . . . . . . . . . . . . . . . 84 Sensors 63 | . . . . . . . . . . . . . . . . . . . . . . 63 Terrain 2447 | . . . . . . . . . . . . . . . . . . . 800 1085 344 218 Structural 4914 | . . . . . 831 356 122 462 361 . . 87 411 1072 257 352 217 386 . . . . Seismic 14622 | 249 1743 2285 1868 3454 935 . . 427 322 . . 455 389 1107 470 244 . 181 176 317 . . Jamming 1791 | . . . . . . . . . . . . . . 268 617 147 . . . 502 119 138 Robot Analysis Total 13 | . 1 . . 8 . . . . . . . . . . . . 4 . . . . . Derelict Logs Recovered 10 | . . 2 . 2 . 1 . 2 . . . . . . 2 1 . . . . . . Drone Launches 2 | . . . . . . . . . . . . . . 2 . . . . . . . . Drone Recoveries 2 | . . . . . . . . . . . . . . 2 . . . . . . . . Exploration | -11 -10 -10 -8 -8 -6 -6 -6 -5 -5 -5 -5 -5 -5 -4 -4 -4 -4 -3 -3 -3 -2 -1 ------------- Run | Yrd Mat Sub Rec Scr Fac Low Dat Pro Fac Ext Cet Arc Hub Fac Upp Upp Zhi Pro Res Tes Res Acc Turns Passed 29846 | 306 1750 5535 1868 6518 1364 356 122 462 593 1482 445 1169 698 1411 617 498 218 510 896 1492 751 785 Spaces Moved 14989 | 145 477 2577 885 3494 826 274 90 300 343 934 210 149 370 673 417 334 146 334 542 702 286 481 Core 247 | 2 . . . . . . . . . . . . . . . . . . . . . 245 Treads 2712 | 143 477 1544 . . . . . . . . 66 147 . . . . . . . 163 . 172 Legs 5410 | . . 1033 885 3492 . . . . . . . . . . . . . . . . . . Wheels 6585 | . . . . 2 826 274 90 300 343 934 144 2 370 673 417 334 146 334 542 539 286 29 Hover 35 | . . . . . . . . . . . . . . . . . . . . . . 35 Flight . | . . . . . . . . . . . . . . . . . . . . . . . Fastest Speed 50 | 50 160 130 200 110 120 130 130 140 130 130 130 140 140 130 140 140 130 140 140 140 150 50 Average Speed 167 | 158 313 184 200 180 129 130 130 140 137 135 171 238 140 146 140 140 131 141 141 167 157 107 Slowest Speed 320 | 160 320 320 200 200 130 130 140 140 140 140 240 240 140 150 140 140 140 150 150 240 170 245 Overloaded Moves . | . . . . . . . . . . . . . . . . . . . . . . . Propulsion Burnouts . | . . . . . . . . . . . . . . . . . . . . . . . Robots Hopped . | . . . . . . . . . . . . . . . . . . . . . . . Potential Cave-ins 7 | . . . . . . . . . . . . . 2 . . . . . 2 . . 3 Cave-ins Triggered . | . . . . . . . . . . . . . . . . . . . . . . . Teleports 1 | . . . . . . . . . . . . . . . . . . . . . . 1 Exploration Rate (%) 51 | 7 75 85 94 93 17 25 69 50 10 85 73 73 42 18 64 55 60 65 22 71 13 15 Regions Visited 22 Branch Regions 15 Pre-discovered Areas 16 | . . 1 5 5 . . 1 . . . . . . . . 1 3 . . . . . Known Exits Taken 6 | . . . . 1 . . . 1 . . . . . 1 . . . 1 1 1 . . Unknown Exits Taken 16 | 1 1 1 1 . 1 1 1 . 1 1 1 1 1 . 1 1 1 . . . 1 . Scrap Searched 11 | . . . . 4 . . . 2 . . . . . . 1 2 . 2 . . . . Spaces Dug 131 | . . 1 1 . 1 . . 6 70 . . . 12 10 1 2 . . 3 10 10 4 Terrain Destroyed 1123 | . . 5 4 . 19 . . 12 77 45 17 15 250 93 54 77 . 59 46 107 178 65 Melee 2 | . . 1 . . 1 . . . . . . . . . . . . . . . . . Projectile 846 | . . 4 4 . 18 . . 12 7 39 17 15 90 92 54 77 . 59 45 105 172 36 AOE 263 | . . . . . . . . . 70 6 . . 160 . . . . . . . . 27 Terrain Rammed . | . . . . . . . . . . . . . . . . . . . . . . . Walls Destroyed . | . . . . . . . . . . . . . . . . . . . . . . . Machines Disabled . | . . . . . . . . . . . . . . . . . . . . . . . Actions | -11 -10 -10 -8 -8 -6 -6 -6 -5 -5 -5 -5 -5 -5 -4 -4 -4 -4 -3 -3 -3 -2 -1 --------- Run | Yrd Mat Sub Rec Scr Fac Low Dat Pro Fac Ext Cet Arc Hub Fac Upp Upp Zhi Pro Res Tes Res Acc Total 18887 | 175 651 3149 970 3686 1031 274 95 328 436 1114 289 957 518 1065 447 360 171 368 636 980 549 638 Wait 2256 | . 102 379 63 134 71 . . 15 28 35 30 789 71 253 2 4 4 20 18 109 110 19 Move 14967 | 144 476 2576 884 3493 825 273 89 299 342 933 209 148 369 672 416 333 145 333 541 701 285 481 Hop . | . . . . . . . . . . . . . . . . . . . . . . . Pick Up 169 | 2 21 18 9 27 17 . . 2 7 4 6 2 5 12 . . 2 . 6 19 7 3 Fast Attach 70 | 7 2 4 . 7 4 . 1 . 6 5 1 . 1 6 1 . 6 . . 3 4 12 Attach 51 | . 1 2 . 2 8 1 2 . 5 1 2 1 . 4 . . 1 . 3 9 4 5 Detach 30 | . . 1 . 2 1 . 2 . 4 1 1 . . 3 1 . . . . 5 1 8 Swap 276 | 1 4 20 1 . 20 . . 1 17 16 5 3 23 28 5 5 4 3 26 47 31 16 Drop 146 | . 4 24 2 10 9 . 1 . 9 15 11 3 6 9 . . 9 . 2 20 6 6 Fire 707 | 21 41 88 8 4 51 . . 11 15 32 24 11 43 49 13 18 . 12 33 58 100 75 Melee 46 | . . 21 3 7 1 . . . 3 . . . . 3 . . . . 3 5 . . Ram 2 | . . . . . . . . . . . . . . 1 . . . . . . . 1 Kick . | . . . . . . . . . . . . . . . . . . . . . . . Crush . | . . . . . . . . . . . . . . . . . . . . . . . Escape Stasis 69 | . . . . . 24 . . . . 8 . . . 24 . . . . . 2 . 11 Rewire 71 | . . . . . . . . . . 61 . . . . 9 . . . . . . 1 Trap . | . . . . . . . . . . . . . . . . . . . . . . . Miscellaneous 27 | . . 16 . . . . . . . 3 . . . 1 . . . . 4 2 1 . Route ------- -11/Scrapyard -10/Materials (discovered 4 exits: [*Mat x2] / [*Min] / *Sub) -10/Subcaves (discovered 3 exits: [*Mat x2] / *Rec) -8/Recycling (discovered 2 exits: *Fac / *Scr) -8/Scraptown (discovered 2 exits: *Fac x2) -6/Factory (discovered 4 exits: Fac x2 / [*Low x2]) -6/Lower Caves -6/Data Miner -5/Proximity Caves -5/Factory (discovered 2 exits: Upp / *Ext) -5/Extension (discovered 2 exits: *Fac / *Cet) -5/Cetus (discovered 2 exits: *Fac / [*Arc]) -5/Archives (discovered 3 exits: *Fac / *Hub x2) -5/Hub_04(d) (discovered 2 exits: *Fac x2) -4/Factory (discovered 6 exits: Res x3 / *Upp x2 / Arm) -4/Upper Caves -4/Upper Caves -4/Zhirov -3/Proximity Caves -3/Research (discovered 5 exits: *Res x3 / *Tes x2) -3/Testing -2/Research (discovered 2 exits: *Acc / [Qua]) -1/Access History --------- Turn | Location | Event 15 | -11/Scrapyard | Discovered new exit (range 15) 307 | -11/Scrapyard | Entered Materials 308 | -10/Materials | Build established: Mutant 582 | -10/Materials | Discovered new exit (range 10) 1120 | -10/Materials | Discovered new exit (range 9) 1368 | -10/Materials | Repaired Lgt. Treads 1395 | -10/Materials | Repaired Lgt. Treads 1423 | -10/Materials | Repaired Assault Rifle 1459 | -10/Materials | Discovered new exit (range 5) 2025 | -10/Materials | Discovered new exit (range 7) 2057 | -10/Materials | Entered Subcaves 2577 | -10/Subcaves | A Subdweller sparked back to life 2577 | -10/Subcaves | A Subdweller sparked back to life 2711 | -10/Subcaves | Found Prototype Leg 3039 | -10/Subcaves | Visited 4L-MR0's lab 3054 | -10/Subcaves | Identified Cargo Legs 3077 | -10/Subcaves | Found Tower Shield 3747 | -10/Subcaves | Discovered new exit (range 12) 3914 | -10/Subcaves | Build established: Subdweller-Mutant 3951 | -10/Subcaves | Shifting Twisted Machinery released Mak. System Shield 4153 | -10/Subcaves | Shifting Twisted Machinery released Sub. Monowheel 4334 | -10/Subcaves | A swath of the cavern ceiling suddenly collapsed 4437 | -10/Subcaves | Learned location of Zion (-7) 4445 | -10/Subcaves | Shifting Twisted Machinery released Hvy. Riot Gun 4773 | -10/Subcaves | Visited Clippyterm 4778 | -10/Subcaves | Learned Research security intel 4778 | -10/Subcaves | Learned Research machine intel 5082 | -10/Subcaves | Core integrity fell below 50% 5634 | -10/Subcaves | Ambushed by Subdweller buried in earth 5656 | -10/Subcaves | Attached Cargo Legs, gained temporary slots: Utility x2 5755 | -10/Subcaves | Discovered new exit (range 12) 5766 | -10/Subcaves | A swath of the cavern ceiling suddenly collapsed 6231 | -10/Subcaves | Core integrity fell below 20% 6244 | -10/Subcaves | Discovered new exit (range 15) 6870 | -10/Subcaves | Build established: Mutant 6948 | -10/Subcaves | Found SUBCON Basin 7592 | -10/Subcaves | Entered Recycling 7897 | -8/Recycling | Scanned before Scraplab entrance 7925 | -8/Recycling | Entered Scraplab 8362 | -8/Recycling | Discovered new exit (range 6) 9454 | -8/Recycling | Discovered new exit (range 3) 9460 | -8/Recycling | Entered Scraptown 9964 | -8/Scraptown | Scanned Subdweller tech in exchange for log data 9968 | -8/Scraptown | Learned Factory stockpile data 10014 | -8/Scraptown | Discovered new exit (range 7) 10257 | -8/Scraptown | Visited Spacefarers 10313 | -8/Scraptown | Visited Comm Corps 10329 | -8/Scraptown | Visited Shadow of the Wyrm 10565 | -8/Scraptown | Visited Observation Area 10637 | -8/Scraptown | Visited Fellowship of the Rings 10681 | -8/Scraptown | Visited TADAMA 10735 | -8/Scraptown | Visited UFD Registry 10735 | -8/Scraptown | Registered with UFD as "Thermobox" 10871 | -8/Scraptown | Guru changed UFD alias to "Fluxtank" 11033 | -8/Scraptown | Visited Symbiants 11425 | -8/Scraptown | Visited Chapter 10 11473 | -8/Scraptown | Visited Curators Association 11539 | -8/Scraptown | Visited Junk Repository 11723 | -8/Scraptown | Visited Cartography Club 11777 | -8/Scraptown | Visited Science Guys 11869 | -8/Scraptown | Visited Scrapoid Pod Storage 11935 | -8/Scraptown | Visited Scrap Suit Storage 11965 | -8/Scraptown | Visited Analyses Database 12011 | -8/Scraptown | Visited Infowarlord's Domain 12506 | -8/Scraptown | Found Scrapoid Pod 12668 | -8/Scraptown | Scrapoid Pod released 08S05-D (x5) 12884 | -8/Scraptown | Attached CPS modules to 08S05-D. 12886 | -8/Scraptown | Attached CPS modules to 08S03-D. 12912 | -8/Scraptown | Attached CPS modules to 08S04-D. 12921 | -8/Scraptown | Attached CPS modules to 08S01-D. 12981 | -8/Scraptown | Murdered 4 allies 13185 | -8/Scraptown | Learned location of Proximity Caves (-6) 13185 | -8/Scraptown | Learned location of Armory (-4) 13185 | -8/Scraptown | Learned location of Quarantine (-2) 13185 | -8/Scraptown | Learned 8 Materials zone layouts 13185 | -8/Scraptown | Learned 12 Materials zone layouts 13185 | -8/Scraptown | Learned 8 Factory zone layouts 13185 | -8/Scraptown | Learned 12 Proximity Caves zone layouts 13185 | -8/Scraptown | Learned 8 Research zone layouts 13185 | -8/Scraptown | Learned location of 1 exit from Factory 13185 | -8/Scraptown | Learned location of 1 exit from Research 13185 | -8/Scraptown | Identified exit to Factory 13252 | -8/Scraptown | Found Deep Structural Scanner 13728 | -8/Scraptown | Found Scrap Suit 13799 | -8/Scraptown | Found Exp. Terrain Scanner 14270 | -8/Scraptown | Found Scrap Suit 15813 | -8/Scraptown | Visited LU-1G1's Boring Crew 15978 | -8/Scraptown | Entered Factory 15978 | -6/Factory | Accompanied by 1 ally 15978 | -6/Factory | Evolved 8 slots: Utility x7, Weapon x1 15979 | -6/Factory | Identified exit to Factory 16396 | -6/Factory | Build established: Scavenger-Scrapper 16479 | -6/Factory | Repaired Imp. Heavy Armor Plating 16522 | -6/Factory | Discovered new exit (range 15) 16701 | -6/Factory | Discovered new exit (range 6) 16939 | -6/Factory | Build established: Scavenger-Tank 17072 | -6/Factory | Found Prototype Processor 17072 | -6/Factory | Identified Exp. Targeting Computer 17183 | -6/Factory | Fabricated Ovr. Coil Gun? 17209 | -6/Factory | Hacking Suite fried by hacking feedback 17342 | -6/Factory | Entered Lower Caves 17343 | -6/Lower Caves | A Derelict revealed a hidden shortcut to meet someone special 17363 | -6/Lower Caves | Learned Factory interactive machine intel 17382 | -6/Lower Caves | Build established: Tank 17698 | -6/Lower Caves | Entered Data Miner 17698 | -6/Data Miner | Discovered new exit (range 6) 17725 | -6/Data Miner | Met Data Miner 17749 | -6/Data Miner | Learned location of Section 7 (-2) 17749 | -6/Data Miner | Acquired the access code to Warlord's prototype stash 17770 | -6/Data Miner | Received God Mode back door access code from Data Miner 17820 | -6/Data Miner | Entered Proximity Caves 17846 | -5/Proximity Caves | Learned Factory stockpile data 17984 | -5/Proximity Caves | Received a Behemoth hack from an annoying Tinkerer 18214 | -5/Proximity Caves | Spotted B-75 Beast 18262 | -5/Proximity Caves | Discovered exit to Factory (range 16) 18282 | -5/Proximity Caves | Entered Factory 18282 | -5/Factory | Evolved 2 slots: Utility x1, Weapon x1 18283 | -5/Factory | Identified exit to Upper Caves 18285 | -5/Factory | Loaded intel: 56 interactive machine locations 18461 | -5/Factory | Repaired Coil Gun 18560 | -5/Factory | Repaired Ovr. Coil Gun? 18627 | -5/Factory | Scrapoids reinforcements arrived? 18677 | -5/Factory | Attached CPS modules to 05F10-D. 18689 | -5/Factory | Attached CPS modules to 05F07-D. 18699 | -5/Factory | Found Scrap Suit 18712 | -5/Factory | Found Scrap Suit 18752 | -5/Factory | Scrapoids reinforcements arrived? 18809 | -5/Factory | Attached CPS modules to 05F14-D. 18816 | -5/Factory | Attached CPS modules to 05F12-D. 18824 | -5/Factory | Attached CPS modules to 05F13-D. 18863 | -5/Factory | Discovered new exit (range 9) 18875 | -5/Factory | Entered Extension 18875 | -5/Extension | Accompanied by 6 allies 19072 | -5/Extension | Build established: Commander-Scrapper 19368 | -5/Extension | Rescued a captive Derelict 19369 | -5/Extension | Rescued a captive Derelict 19389 | -5/Extension | Rescued a captive Derelict 19442 | -5/Extension | Scrapoids reinforcements arrived? 19446 | -5/Extension | Found Scrap Suit 19666 | -5/Extension | Spotted B-75 Beast 19673 | -5/Extension | Allies destroyed B-75 Beast 19699 | -5/Extension | Lost 3 allies 19775 | -5/Extension | First assault squad dispatched 19803 | -5/Extension | Rescued a captive Derelict 19804 | -5/Extension | Rescued a captive Derelict 19821 | -5/Extension | Rescued a captive Derelict 19822 | -5/Extension | Rescued a captive Derelict 19963 | -5/Extension | Lost 14 allies 20111 | -5/Extension | Rescued a captive Derelict 20112 | -5/Extension | Rescued a captive Derelict 20191 | -5/Extension | Build established: Scavenger-Scrapper 20307 | -5/Extension | Discovered new exit (range 10) 20309 | -5/Extension | Discovered new exit (range 6) 20357 | -5/Extension | Entered Cetus 20357 | -5/Cetus | Accompanied by 4 allies 20392 | -5/Cetus | Spotted Cetus Guard 20392 | -5/Cetus | Spotted Cetus Guard 20397 | -5/Cetus | Destroyed Cetus Guard 20403 | -5/Cetus | Spotted Cetus Guard 20403 | -5/Cetus | Destroyed Cetus Guard 20405 | -5/Cetus | Spotted Cetus Guard 20409 | -5/Cetus | Destroyed Cetus Guard 20410 | -5/Cetus | Destroyed Cetus Guard 20496 | -5/Cetus | Discovered new exit (range 15) 20543 | -5/Cetus | Spotted Cetus Guard 20543 | -5/Cetus | Spotted Cetus Guard 20546 | -5/Cetus | Destroyed Cetus Guard 20547 | -5/Cetus | Destroyed Cetus Guard 20553 | -5/Cetus | Destroyed Cetus Guard 20554 | -5/Cetus | Spotted Cetus Guard 20561 | -5/Cetus | Destroyed Cetus Guard 20571 | -5/Cetus | Discovered new exit (range 15) 20578 | -5/Cetus | Met Revision 17 20802 | -5/Cetus | Entered Archives 20802 | -5/Archives | Accompanied by 2 allies 20979 | -5/Archives | Discovered new exit (range 16) 21003 | -5/Archives | Discovered new exit (range 16) 21034 | -5/Archives | Discovered new exit (range 16) 21971 | -5/Archives | Entered Hub_04(d) 22101 | -5/Hub_04(d) | Discovered new exit (range 14) 22263 | -5/Hub_04(d) | Discovered new exit (range 15) 22537 | -5/Hub_04(d) | Garrison activated, responded to threat 22653 | -5/Hub_04(d) | Network Hub disabled 22669 | -5/Hub_04(d) | Entered Factory 22669 | -4/Factory | Evolved 2 slots: Weapon x2 22670 | -4/Factory | Identified exit to Research 22670 | -4/Factory | Identified exit to Armory 22939 | -4/Factory | Scrapoid reinforcements arrived 22951 | -4/Factory | Incoming investigation squad redirected 23024 | -4/Factory | Attached CPS modules to 04F22-D. 23052 | -4/Factory | Found Scrap Suit 23250 | -4/Factory | Identified exit to Upper Caves 23353 | -4/Factory | Repaired Hrd. Heavy Armor Plating? 23437 | -4/Factory | Repaired Adv. Recoil Stabilizer 23547 | -4/Factory | Repaired Centrium Medium Armor Plating? 23642 | -4/Factory | Repaired Ovr. Coil Gun 23706 | -4/Factory | Repaired Ovr. Coil Gun 23823 | -4/Factory | Repaired Centrium Heavy Treads 24000 | -4/Factory | Scrapoids reinforcements arrived? 24060 | -4/Factory | Found Scrap Suit 24080 | -4/Factory | Entered Upper Caves 24080 | -4/Upper Caves | Accompanied by 2 allies 24103 | -4/Upper Caves | Lost 3 allies 24119 | -4/Upper Caves | Encountered a Warlord checkpoint 24210 | -4/Upper Caves | Found Scrap Suit 24550 | -4/Upper Caves | Attracted the attention of an 0b10 outpost 24580 | -4/Upper Caves | Destroyed 9 combat bots 24630 | -4/Upper Caves | Discovered new exit (range 15) 24633 | -4/Upper Caves | Learned 8 Research zone layouts 24697 | -4/Upper Caves | Entered another Upper Caves area 24697 | -4/Upper Caves | Accompanied by 3 allies 24741 | -4/Upper Caves | Entered a destroyed Warlord outpost 24826 | -4/Upper Caves | Destroyed 7 combat bots 25072 | -4/Upper Caves | Discovered new exit (range 15) 25089 | -4/Upper Caves | Attracted the attention of an 0b10 checkpoint 25195 | -4/Upper Caves | Entered Zhirov 25195 | -4/Zhirov | Accompanied by 1 ally 25195 | -4/Zhirov | Discovered new exit (range 3) 25226 | -4/Zhirov | Met Zhirov 25249 | -4/Zhirov | Learned location of Testing (-3) 25249 | -4/Zhirov | Learned location of Command (-1) 25262 | -4/Zhirov | Zhirov requested help retrieving the SGEMP Prototype 25282 | -4/Zhirov | Found Alien Artifact 25282 | -4/Zhirov | Identified Integrated Reactor 25282 | -4/Zhirov | Installed Integrated Reactor, increased core energy generation (+10) 25349 | -4/Zhirov | Found Alien Artifact 25413 | -4/Zhirov | Entered Proximity Caves 25413 | -3/Proximity Caves | Accompanied by 1 ally 25903 | -3/Proximity Caves | Discovered exit to Research (range 15) 25923 | -3/Proximity Caves | Entered Research 25923 | -3/Research | Evolved 2 slots: Propulsion x2 25924 | -3/Research | Identified exit to Research 25927 | -3/Research | Loaded intel: 106 machine locations 26082 | -3/Research | Spotted B-86 Titan 26123 | -3/Research | Revision forces began assault on 0b10 26186 | -3/Research | Met up with Revision 17++ 26236 | -3/Research | Discovered exit to Research (range 28) 26265 | -3/Research | Identified exit to Testing 26509 | -3/Research | Found Gamma Bomb Array 26622 | -3/Research | Scrapoids reinforcements arrived? 26623 | -3/Research | Research terminal network offline 26651 | -3/Research | Attached CPS modules to 03R31-D. 26653 | -3/Research | Attached CPS modules to 03R34-D. 26819 | -3/Research | Entered Testing 26819 | -3/Testing | Accompanied by 5 allies 26870 | -3/Testing | Attached CPS modules to 03R32-D. 26895 | -3/Testing | Attached CPS modules to 03R35-D. 27067 | -3/Testing | Garrison activated, responded to threat 27133 | -3/Testing | Lost 3 allies 27185 | -3/Testing | Spotted Striker 27483 | -3/Testing | Found Prototype Device 27500 | -3/Testing | Identified Exp. Thermal Shield 27680 | -3/Testing | Scanned by Researcher 27741 | -3/Testing | Garrison activated, responded to threat 27789 | -3/Testing | Found Prototype Energy Cannon 27819 | -3/Testing | First assault squad dispatched 27838 | -3/Testing | Incoming assault squad redirected 27919 | -3/Testing | Discovered exit to Research (range 26) 28162 | -3/Testing | Found Prototype Device 28162 | -3/Testing | Identified Exp. Hardlight Generator 28275 | -3/Testing | Found Prototype Protection 28277 | -3/Testing | Identified Hvy. Regenerative Plating 28281 | -3/Testing | Found Prototype Protection 28281 | -3/Testing | Identified SHELL Armor 28311 | -3/Testing | Entered Research 28311 | -2/Research | Evolved 2 slots: Power x1, Utility x1 28417 | -2/Research | Garrison activated, responded to threat 28512 | -2/Research | Spotted B-90 Cyclops 28516 | -2/Research | Befriended a Behemoth using the annoying Tinkerer's hack 28811 | -2/Research | First assault squad dispatched 28873 | -2/Research | Discovered new exit (range 12) 28897 | -2/Research | Found Spectral Analyzer 28902 | -2/Research | Destroyed 7 combat bots 28920 | -2/Research | Discovered new exit (range 28) 28960 | -2/Research | Destroyed 8 combat bots 29011 | -2/Research | Destroyed 12 combat bots 29017 | -2/Research | Lost 3 parts (3w) 29062 | -2/Research | Entered Access 29062 | -1/Access | Evolved 2 slots: Propulsion x2 29126 | -1/Access | Garrison activated, responded to threat 29191 | -1/Access | Scrapoid reinforcements arrived 29206 | -1/Access | Destroyed 10 combat bots 29312 | -1/Access | First assault squad dispatched 29352 | -1/Access | High security lockdown imminent 29432 | -1/Access | High security lockdown engaged 29464 | -1/Access | Build established: Scavenger-Executioner 29556 | -1/Access | Found Scrap Suit 29638 | -1/Access | Destroyed 13 combat bots 29659 | -1/Access | Spotted Investigator 29680 | -1/Access | Identified Potential Cannon 29688 | -1/Access | Identified Transdimensional Reconstructor 29688 | -1/Access | Warped through subspace 29712 | -1/Access | Lost 11 parts (1p3n4u3w) 29743 | -1/Access | Found Spectral Analyzer 29760 | -1/Access | Spotted Striker 29760 | -1/Access | Spotted Executioner 29760 | -1/Access | Spotted Striker 29762 | -1/Access | Core integrity fell below 50% 29801 | -1/Access | Spotted Executioner 29801 | -1/Access | Spotted Striker 29808 | -1/Access | Core integrity fell below 20% 29845 | -1/Access | Spotted B-99 Colossus 29847 | -1/Access | Destroyed by B-99 Colossus with Multirail Last Messages --------------- 29801_ E-15 Imp unfolds itself. 29805_ Knocked back. 29808_ C-45 Heavy ARC bursts open, deploying its payload. 29808_ G-73 Enforcer unfolds itself. 29808_ L-61 Swordsman unfolds itself. 29808_ G-73 Enforcer unfolds itself. 29808_ I-47 Archangel unfolds itself. 29808_ Critical hit (Impale). 29818_ Striker knocked back. 29818_ Imp. Gyrokinetic Inverter blown off. 29818_ E-15 Imp destroyed. 29820_ Striker knocked back. 29824_ K-01 Serf cleans the Sealed Freight Elevator. 29827_ Triggered Segregator Trap. 29827_ Arcs of energy rise from the floor. 29827_ Imp. Gyrokinetic Inverter blown off. 29827_ Spectral Analyzer blown off. 29845_ System corrupted: Component data lost. Map ----- +----------------------------------------------------+ | ?????????????????????????????????????????????????? | | ?????????????????????????????????????????????????? | | ?????????????????????????????????????????????????? | | ?????????????????????????????????????????????????? | | ?????????????????????????????????????????????????? | | ?????????????????????????????????????????????????? | | ???????????????????????????????? ??????????????? | | ?????????????????????????????? ??????????????? | | ?????????????????????????????? ??????????????? | | ?????????????????????????????? #????#!??????? | | ??????????????????????????????# #????# ?????? | | ??????????????????????????????# #????# """"" | | ??????????????????????????????# #????# """"" | | ??????????????????????????????# #????# """"" | | ??????????????????????????????+ #????# """"" | | ??????????????????????????????# +????# | | ??????????????????????????????# #????? | | ??????????????????????????????# #??????? | | ??????????????????????????????# #????????? | | ???????????????????????######## ############/## | | ???????????????????????# | | ???????????????????????# | | ???????????????????????# | | ???????????????????????# | | ???????????????????????# ####+############ # | | ???????????????????????# @ ; ???# # | | ??????????????????????#; # ???# # | | ????????????????????? #? ???# # | | ??????????????????? #? ????????+ # | | ????????????????? # ???????## # | | ??????????????? # ????????# # | | ?????????????" BB ###+############???????# # | | ?????????????" BB ???????????????????????# # | | ?????????????" ????????????????????????# # | | ?????????????######?????????????????????????+ # | | ????????????????????????????????????????????? # | | ????????????????????????????????????????????? ?? | | ?????????????????????????????????????????????????? | | ?????????????????????????????????????????????????? | | ?????????????????????????????????????????????????? | | ?????????????????????????????????????????????????? | | ?????????????????????????????????????????????????? | | ?????????????????????????????????????????????????? | | ?????????????????????????????????????????????????? | | ?????????????????????????????????????????????????? | | ?????????????????????????????????????????????????? | | ?????????????????????????????????????????????????? | | ?????????????????????????????????????????????????? | | ?????????????????????????????????????????????????? | | ?????????????????????????????????????????????????? | +----------------------------------------------------+ Best States ------------- Heat Dissipation 163 Coolant Potential 100 Energy Generation 55 Energy Capacity 430 Matter Stores 300 Matter Capacity 300 Sight Range 24 Robot Scan Range 16 Terrain Scan Range 30 Terrain Scan Density 110 Jamming Range 14 Base Temperature (-) 200 Armor Coverage 1800 Evasion (%) 55 Recoil Reduction 8 Offensive Hacking 11 Authchip Count 2 Item Schematics ----------------- Ovr. Coil Gun | -6/Factory | Scanalyzed Combat Drone Bay | -6/Data Miner | Free Lgt. Regenerative Plating | -6/Data Miner | Free Enh. Armored Leg | -6/Data Miner | Free Adv. EM Disruption Field | -6/Data Miner | Free Imp. KE Penetrator | -6/Data Miner | Free Imp. Gyrokinetic Inverter | -6/Data Miner | Free Adv. Power Amplifier | -6/Data Miner | Free Phase Gun | -6/Data Miner | Free Assault Drone Bay | -4/Zhirov | Free Exp. Heat Sink | -4/Zhirov | Free Exp. Optical Array | -4/Zhirov | Free Imp. Arc Thrower | -4/Zhirov | Free Centrium Heavy Treads | -3/Testing | Scanalyzed Robot Schematics ------------------ B-60 Warrior | -6/Data Miner | Free A-15 Conveyor | -6/Data Miner | Free E-15 Imp | -6/Data Miner | Free B-48 Gladiator | -6/Data Miner | Free L-61 Swordsman | -6/Data Miner | Free Y-64 Sentinel | -6/Data Miner | Free M-36 Artificer | -6/Data Miner | Free M-30 Cleanser | -3/Testing | Archive R-06 Scavenger | -3/Testing | Archive Fabricated ------------ Ovr. Coil Gun | x1 | -6/Factory | Authchip Repaired ---------- Lgt. Treads | 57% | -10/Materials Lgt. Treads | 62% | -10/Materials Assault Rifle | 29% | -10/Materials Imp. Heavy Armor Plating | 8% | -6/Factory Coil Gun | 14% | -5/Factory Ovr. Coil Gun | 38% | -5/Factory Hrd. Heavy Armor Plating | 21% | -4/Factory Adv. Recoil Stabilizer | 50% | -4/Factory Centrium Medium Armor Plating | 66% | -4/Factory Ovr. Coil Gun | 52% | -4/Factory Ovr. Coil Gun | 65% | -4/Factory Centrium Heavy Treads | 80% | -4/Factory Studied --------- Gamma Bomb Array | -3/Testing | Hacked Imp. Remote Datajack | -3/Testing | Hacked Nova Cannon | -3/Testing | Hacked Alien Tech Used ----------------- Integrated Reactor Transdimensional Reconstructor Achievements -------------- None Challenges ------------ None Game ------ Seed ElectronBurstArticulator Manual? 0 Play Time 04:13:08 Cumulative 257.9 hours Start 2025.12.01 @ 14:41:38 End 2025.12.01 @ 21:00:10 Sessions 2 Manual Loads 0 Difficulty Rogue Special Mode None Game No. 192 Rogue 192 Adventurer 0 Explorer 0 Win Type - Total 11 Types 6/0/2/1/0/0/0/1/0/1 Lore% 68 Gallery% 74 Achievement% 67 Wizard Run 0 Options --------- Layout 2 ASCII 0 Keyboard 1 Movement Arrows Keybinds 0 Fullscreen 1 Font 32/Tamsyn Map View 50x44 Zoom Use 0% Tactical HUD 1 Map Filters NONE Filters NONE Steam 1 RUN: ae7f79bb-4fce-4a06-9515-ec3faeb453a4